bitfinex/quotes_BTCUSD_20240717
["timestamp","ask_amount","ask_price","bid_price","bid_amount"]
[1721214447130,0.00184,65069.0,65068.0,0.36364991]
[1721214447328,0.00284,65069.0,65068.0,0.36664991]
[1721214451715,0.00284,65069.0,65068.0,0.032]
[1721214451993,0.00284,65069.0,65068.0,0.009]
[1721214452489,0.15242835,65069.0,65068.0,0.009]
[1721214452646,0.25242835,65069.0,65068.0,0.009]
[1721214453234,0.11182835,65069.0,65068.0,0.006]
[1721214453634,0.11082835,65069.0,65049.0,0.0626]
[1721214453837,0.002794,65068.0,65050.0,0.16851174]
[1721214454081,0.01254759,65068.0,65050.0,0.16851174]
[1721214454290,0.00184,65069.0,65058.0,0.000924]
[1721214454497,0.00284,65069.0,65058.0,0.000924]
[1721214454648,0.01258054,65068.0,65058.0,0.000924]
[1721214455082,0.00978654,65068.0,65058.0,0.000924]
[1721214455282,0.01078654,65068.0,65059.0,0.15438174]
[1721214455479,0.01078654,65068.0,65060.0,0.04160392]
[1721214455681,0.001,65068.0,65060.0,0.04160392]
[1721214455905,0.001,65068.0,65061.0,0.142]
[1721214456063,0.001,65068.0,65062.0,0.02607332]
[1721214456408,0.001,65068.0,65063.0,0.03619096]
[1721214456629,0.001,65068.0,65063.0,0.1905727]
[1721214456832,0.001,65068.0,65064.0,0.18045488]
[1721214457032,0.001,65068.0,65065.0,0.05]
[1721214457162,0.00284,65069.0,65066.0,0.17738174]
[1721214457362,0.00484,65069.0,65067.0,0.02865727]
[1721214457566,0.00484,65069.0,65068.0,0.17738174]
[1721214457567,0.00284,65069.0,65068.0,0.17738174]
[1721214457767,0.00084,65069.0,65068.0,0.17738174]
[1721214458239,0.00084,65069.0,65068.0,0.1804546]
[1721214458365,0.00084,65069.0,65068.0,0.20998488]
[1721214458817,0.00184,65069.0,65068.0,0.21191202]
[1721214459201,0.00184,65069.0,65068.0,0.05553028]
[1721214459403,0.00184,65069.0,65068.0,0.026]
[1721214459605,0.00284,65069.0,65068.0,0.031]
[1721214459981,0.01252485,65069.0,65068.0,0.031]
[1721214460527,0.01152485,65069.0,65068.0,0.028]
[1721214460881,0.01052485,65069.0,65068.0,0.023]
[1721214461083,0.01152485,65069.0,65068.0,0.003]
[1721214461429,0.01152485,65069.0,65068.0,0.023]
[1721214461430,0.01252485,65069.0,65068.0,0.023]
[1721214461574,0.01052485,65069.0,65063.0,0.023]
[1721214461775,0.01252485,65069.0,65063.0,0.023]
[1721214462029,0.01252485,65069.0,65056.0,0.0604]
[1721214462030,0.01452485,65069.0,65057.0,0.023]
[1721214462238,0.01452485,65069.0,65059.0,0.0165624]
[1721214462447,0.01452485,65069.0,65060.0,0.023]
[1721214462667,0.01252485,65069.0,65060.0,0.023]
[1721214462808,0.01252485,65069.0,65058.0,0.000924]
[1721214462809,0.002794,65068.0,65058.0,0.000924]
[1721214463018,0.00967781,65067.0,65058.0,0.000924]
[1721214463209,0.002794,65066.0,65058.0,0.000924]
[1721214463422,0.00966316,65065.0,65058.0,0.000924]
[1721214464246,0.00484,65069.0,65058.0,0.000924]
[1721214464457,0.00965583,65064.0,65058.0,0.000924]
[1721214464655,0.00284,65069.0,65058.0,0.000924]
[1721214464847,0.0096485,65063.0,65058.0,0.000924]
[1721214465027,0.00284,65069.0,65058.0,0.000924]
[1721214465204,0.01247913,65068.0,65058.0,0.000924]
[1721214465850,0.01247913,65068.0,65058.0,0.003924]
[1721214466013,0.01247913,65068.0,65059.0,0.023]
[1721214467659,0.01347913,65068.0,65059.0,0.023]
[1721214467829,0.01447913,65068.0,65059.0,0.023]
[1721214468155,0.07717479,65064.0,65059.0,0.023]
[1721214468302,0.002794,65063.0,65059.0,0.023]
[1721214468497,0.11236176,65063.0,65059.0,0.023]
[1721214468939,0.08072729,65062.0,65059.0,0.023]
[1721214469138,0.002794,65061.0,65059.0,0.023]
[1721214469343,0.002794,65061.0,65058.0,0.000924]
[1721214469344,0.2351075,65060.0,65058.0,0.000924]
[1721214469517,0.18351976,65059.0,65058.0,0.000924]
[1721214469717,0.41326904,65059.0,65058.0,0.000924]
[1721214469917,0.48917504,65059.0,65058.0,0.000924]
[1721214470902,0.40844928,65059.0,65058.0,0.000924]
[1721214471893,0.41844928,65059.0,65058.0,0.000924]
[1721214472465,0.42044928,65059.0,65058.0,0.000924]
[1721214472873,0.43244928,65059.0,65058.0,0.000924]
[1721214473073,0.44244928,65059.0,65058.0,0.000924]
[1721214474458,0.42044928,65059.0,65058.0,0.000924]
[1721214474668,0.40844928,65059.0,65058.0,0.000924]
[1721214475217,0.43144928,65059.0,65058.0,0.000924]
[1721214475428,0.41844928,65059.0,65058.0,0.000924]
[1721214475572,0.27406754,65059.0,65058.0,0.000924]
[1721214475779,0.12956754,65059.0,65058.0,0.000924]
[1721214477160,0.02956754,65059.0,65058.0,0.000924]
[1721214477739,0.00956754,65059.0,65058.0,0.000924]
[1721214477940,0.00084,65069.0,65058.0,0.0039978]
[1721214478143,0.002794,65068.0,65059.0,0.023]
[1721214478344,0.002794,65068.0,65060.0,0.0155832]
[1721214478548,0.00084,65069.0,65061.0,0.023]
[1721214478748,0.00084,65069.0,65062.0,0.00307334]
[1721214478945,0.00084,65069.0,65061.0,0.023]
[1721214478946,0.00084,65069.0,65063.0,0.023]
[1721214479110,0.00084,65069.0,65063.0,0.02607334]
[1721214479313,0.014,65068.0,65065.0,0.0613]
[1721214479514,0.014,65068.0,65066.0,0.023]
[1721214479796,0.00084,65069.0,65066.0,0.023]
[1721214479797,0.01284,65069.0,65066.0,0.023]
[1721214480067,0.01284,65069.0,65066.0,0.02607329]
[1721214480701,0.01284,65069.0,65066.0,0.023]
[1721214480902,0.01284,65069.0,65067.0,0.01035965]
[1721214481173,0.01284,65069.0,65068.0,0.023]
[1721214481174,0.00084,65069.0,65068.0,0.023]
[1721214481863,0.01384,65069.0,65068.0,0.023]
[1721214482363,0.00084,65069.0,65068.0,0.023]
[1721214482695,0.00084,65069.0,65068.0,0.104]
[1721214482696,0.00284,65069.0,65068.0,0.104]
[1721214482914,0.00484,65069.0,65068.0,0.28318465]
[1721214483650,0.00484,65069.0,65068.0,0.023]
[1721214484033,0.00284,65069.0,65068.0,0.023]
[1721214484494,0.01074044,65069.0,65068.0,0.027]
[1721214484643,0.00084,65069.0,65068.0,0.027]
[1721214484863,0.01074044,65069.0,65068.0,0.031]
[1721214485050,0.01074044,65069.0,65068.0,0.023]
[1721214485274,0.01274044,65069.0,65068.0,0.023]
[1721214485467,0.01474044,65069.0,65068.0,0.023]
[1721214485772,0.01274044,65069.0,65068.0,0.023]
[1721214486677,0.01474044,65069.0,65068.0,0.023]
[1721214488847,0.01474044,65069.0,65059.0,0.0756]
[1721214489044,0.00484,65069.0,65060.0,0.0140424]
[1721214489654,0.00284,65069.0,65060.0,0.0140424]
[1721214490062,0.00484,65069.0,65061.0,0.00155289]
[1721214490643,0.00484,65069.0,65062.0,0.15438174]
[1721214490846,0.00484,65069.0,65063.0,0.04749481]
[1721214491277,0.00284,65069.0,65063.0,0.04749481]
[1721214491719,0.00484,65069.0,65063.0,0.04749481]
[1721214491916,0.00484,65069.0,65064.0,0.00155256]
[1721214492123,0.00484,65069.0,65063.0,0.04749481]
[1721214492422,0.00084,65069.0,65064.0,0.0291519]
[1721214492639,0.00284,65069.0,65065.0,0.023]
[1721214492783,0.00484,65069.0,65066.0,0.00155242]
[1721214492989,0.00484,65069.0,65067.0,0.0601]
[1721214493213,0.00284,65069.0,65068.0,0.04966336]
[1721214494416,0.00084,65069.0,65068.0,0.04966336]
[1721214494752,0.00284,65069.0,65068.0,0.04966336]
[1721214495405,0.00284,65069.0,65068.0,0.05121531]
[1721214495824,0.00284,65069.0,65068.0,0.20559705]
[1721214495999,0.00484,65069.0,65068.0,0.2825451]
[1721214496233,0.00084,65069.0,65068.0,0.2825451]
[1721214496430,0.00084,65069.0,65068.0,0.2865451]
[1721214498406,0.00184,65069.0,65068.0,0.2915451]
[1721214498607,0.00184,65069.0,65068.0,0.2875451]
[1721214499020,0.00184,65069.0,65068.0,0.3375451]
[1721214499166,0.00284,65069.0,65068.0,0.29309606]
[1721214499366,0.00284,65069.0,65068.0,0.2915451]
[1721214499732,0.00284,65069.0,65068.0,0.2930959]
[1721214499951,0.00284,65069.0,65068.0,0.2915451]
[1721214501770,0.00284,65069.0,65068.0,0.29309591]
[1721214502139,0.00284,65069.0,65068.0,0.60849591]
[1721214502499,0.00284,65069.0,65068.0,0.71984601]
[1721214503021,0.002794,65091.0,65078.0,0.05]
[1721214503342,0.46304871,65093.0,65078.0,0.36698174]
[1721214503343,0.002794,65092.0,65078.0,0.36698174]
[1721214503918,0.002794,65099.0,65078.0,0.36698174]
[1721214504317,0.102794,65099.0,65078.0,0.4805289]
[1721214504528,0.002794,65098.0,65078.0,0.4805289]
[1721214504931,0.002794,65098.0,65078.0,0.5035289]
[1721214505204,0.002794,65098.0,65078.0,0.38998174]
[1721214505377,0.002794,65098.0,65078.0,0.50377146]
[1721214505588,0.00184,65079.0,65078.0,0.50977146]
[1721214505989,0.00084,65079.0,65078.0,0.50377146]
[1721214506224,0.00084,65079.0,65078.0,0.50362144]
[1721214506403,0.00084,65079.0,65078.0,0.50362119]
[1721214506766,0.002794,65098.0,65088.0,0.05]
[1721214506971,1.73,65100.0,65089.0,0.41998004]
[1721214506972,0.46304871,65096.0,65089.0,0.41998004]
[1721214507211,0.00832516,65097.0,65089.0,0.46843174]
[1721214507412,0.00835813,65095.0,65092.0,0.05]
[1721214507624,1.73,65100.0,65093.0,0.15438174]
[1721214507625,0.00831784,65096.0,65093.0,0.15438174]
[1721214507863,1.73,65100.0,65093.0,0.15438174]
[1721214507864,1.73,65100.0,65093.0,0.29398174]
[1721214508090,1.73,65100.0,65094.0,0.06080317]
[1721214508290,0.0083398,65099.0,65095.0,0.15438174]
[1721214508403,0.0083398,65099.0,65096.0,0.05]
[1721214508603,0.0083398,65099.0,65095.0,0.38082988]
[1721214508604,0.0083398,65099.0,65097.0,0.20592964]
[1721214508861,1.72232282,65100.0,65099.0,0.2]
[1721214509062,1.72332282,65100.0,65099.0,0.37738174]
[1721214509271,1.72332282,65100.0,65099.0,0.42738174]
[1721214510196,1.3931008,65100.0,65099.0,0.42738174]
[1721214510406,1.3931008,65100.0,65099.0,0.68932404]
[1721214510966,1.3911008,65100.0,65099.0,0.71682404]
[1721214511392,1.3921008,65100.0,65099.0,0.71682404]
[1721214511791,1.3681008,65100.0,65099.0,0.71682404]
[1721214512094,1.3691008,65100.0,65099.0,0.8423954]
[1721214512454,1.35308871,65100.0,65099.0,0.8423954]
[1721214512679,1.35108871,65100.0,65099.0,0.8313954]
[1721214513125,1.35208871,65100.0,65099.0,0.8423954]
[1721214513311,1.35108871,65100.0,65099.0,0.8313954]
[1721214513730,1.35108871,65100.0,65099.0,0.7923954]
[1721214513731,1.35208871,65100.0,65099.0,0.7923954]
[1721214513929,1.35208871,65100.0,65099.0,0.8423954]
[1721214514565,1.35308871,65100.0,65099.0,0.8533954]
[1721214515148,1.35208871,65100.0,65099.0,0.72782404]
[1721214515348,1.35208871,65100.0,65099.0,0.73882404]
[1721214515551,1.35208871,65100.0,65099.0,0.85391766]
[1721214515552,1.35308871,65100.0,65099.0,0.85391766]
[1721214515730,0.25438871,65100.0,65099.0,0.95391766]
[1721214516113,0.00837,65112.0,65109.0,0.3932]
[1721214516342,0.00837,65112.0,65109.0,0.85480174]
[1721214516517,0.00837,65112.0,65109.0,0.80480174]
[1721214516720,0.00837,65112.0,65109.0,0.57990174]
[1721214516947,0.00837,65112.0,65109.0,0.21370174]
[1721214517146,0.00837,65112.0,65109.0,0.15438174]
[1721214517376,0.00837,65112.0,65109.0,0.16538174]
[1721214517377,0.01660468,65110.0,65109.0,0.16538174]
[1721214517929,0.00937,65110.0,65109.0,0.16538174]
[1721214518128,0.01037,65110.0,65109.0,0.17738174]
[1721214518332,0.01037,65110.0,65109.0,0.20038174]
[1721214518531,0.01037,65110.0,65109.0,0.22041991]
[1721214521502,0.01037,65110.0,65109.0,0.06603817]
[1721214521702,0.01037,65110.0,65109.0,0.046]
[1721214521703,0.15267,65110.0,65109.0,0.046]
[1721214521867,0.15986073,65110.0,65109.0,0.046]
[1721214522666,0.01556073,65110.0,65109.0,0.17738174]
[1721214522841,0.01556073,65110.0,65109.0,0.19911991]
[1721214523259,0.01556073,65110.0,65109.0,0.19511991]
[1721214523624,0.01556073,65110.0,65109.0,0.19911991]
[1721214523804,0.01556073,65110.0,65109.0,0.19511991]
[1721214524203,0.01556073,65110.0,65109.0,0.19911991]
[1721214524633,0.01556073,65110.0,65109.0,0.20311991]
[1721214524848,0.15526073,65110.0,65109.0,0.04873817]
[1721214525054,0.15526073,65110.0,65109.0,0.031]
[1721214525256,0.15526073,65110.0,65109.0,0.008]
[1721214525636,0.15526073,65110.0,65109.0,0.004]
[1721214526211,0.15526073,65110.0,65109.0,0.008]
[1721214526457,0.15526073,65110.0,65109.0,0.027]
[1721214526779,0.01556073,65110.0,65109.0,0.027]
[1721214526948,0.01556073,65110.0,65109.0,0.17738174]
[1721214527145,0.01556073,65110.0,65109.0,0.19511991]
[1721214527586,0.01556073,65110.0,65109.0,0.19911991]
[1721214527790,0.01556073,65110.0,65109.0,0.19511991]
[1721214527992,0.01556073,65110.0,65109.0,0.19911991]
[1721214528556,0.01556073,65110.0,65109.0,0.19511991]
[1721214528751,0.01556073,65110.0,65109.0,0.19911991]
[1721214529978,0.01556073,65110.0,65109.0,0.20311991]
[1721214530181,0.01556073,65110.0,65109.0,0.19911991]
[1721214530585,0.01556073,65110.0,65109.0,0.20311991]
[1721214535501,0.01556073,65110.0,65109.0,0.04873817]
[1721214535758,0.01556073,65110.0,65109.0,0.031]
[1721214539729,0.01556073,65110.0,65109.0,0.008]
[1721214539949,0.16006073,65110.0,65109.0,0.008]
[1721214540593,0.49533638,65110.0,65109.0,0.008]
[1721214540800,0.4914968,65110.0,65109.0,0.008]
[1721214540956,0.1421,65108.0,65099.0,0.000924]
[1721214541161,0.21927479,65100.0,65099.0,0.000924]
[1721214541422,0.39623291,65100.0,65099.0,0.000924]
[1721214541702,0.40377267,65100.0,65080.0,0.90887271]
[1721214541997,0.40377267,65100.0,65081.0,0.15438174]
[1721214541998,0.102794,65099.0,65081.0,0.15438174]
[1721214542201,0.17975776,65099.0,65081.0,0.15438174]
[1721214542503,0.002794,65097.0,65081.0,0.15438174]
[1721214542960,0.002794,65095.0,65082.0,0.023]
[1721214543161,0.002794,65095.0,65083.0,0.19411991]
[1721214543515,0.002794,65093.0,65084.0,0.023]
[1721214543845,0.002794,65093.0,65085.0,0.15438174]
[1721214543973,0.00740438,65092.0,65086.0,0.023]
[1721214544388,0.002794,65094.0,65086.0,0.023]
[1721214544591,0.002794,65098.0,65087.0,0.02186696]
[1721214544848,0.0074117,65093.0,65088.0,0.023]
[1721214544977,0.002794,65098.0,65088.0,0.023]
[1721214545184,0.00740438,65092.0,65088.0,0.023]
[1721214545539,0.01,65095.0,65088.0,0.023]
[1721214545540,0.0805,65093.0,65088.0,0.023]
[1721214545785,0.002794,65092.0,65088.0,0.023]
[1721214545985,0.01019838,65092.0,65089.0,0.01992487]
[1721214546193,0.01019838,65092.0,65090.0,0.023]
[1721214546932,0.01619838,65092.0,65090.0,0.023]
[1721214547136,0.01619838,65092.0,65088.0,0.001]
[1721214547416,0.01619838,65092.0,65088.0,0.02181199]
[1721214547531,0.01619838,65092.0,65089.0,0.023]
[1721214547735,0.02219838,65092.0,65090.0,0.001]
[1721214547931,0.02819838,65092.0,65090.0,0.001]
[1721214548333,0.1386,65091.0,65090.0,0.001]
[1721214548636,0.26527984,65091.0,65090.0,0.001]
[1721214548841,0.24597328,65091.0,65090.0,0.001]
[1721214549090,0.24597328,65091.0,65089.0,0.001]
[1721214549320,0.48269171,65090.0,65089.0,0.001]
[1721214549450,0.33539771,65090.0,65088.0,0.001]
[1721214549653,0.0828,65088.0,65064.0,0.5527]
[1721214549853,0.0617,65085.0,65068.0,0.15438174]
[1721214550056,0.002794,65084.0,65068.0,0.15438174]
[1721214550241,0.01011904,65084.0,65068.0,0.15438174]
[1721214550869,0.01011904,65084.0,65069.0,0.04921817]
[1721214551088,0.01011904,65084.0,65069.0,0.20359991]
[1721214551290,0.01011904,65084.0,65080.0,0.000924]
[1721214551853,0.0828,65083.0,65080.0,0.000924]
[1721214552058,0.085594,65081.0,65080.0,0.000924]
[1721214552271,0.27733172,65081.0,65080.0,0.000924]
[1721214552473,0.44289333,65081.0,65080.0,0.000924]
[1721214552676,0.5209265,65081.0,65080.0,0.000924]
[1721214553475,0.51708471,65081.0,65080.0,0.000924]
[1721214553822,0.43905154,65081.0,65080.0,0.000924]
[1721214554064,0.44205154,65081.0,65080.0,0.000924]
[1721214554729,0.44505154,65081.0,65080.0,0.000924]
[1721214555040,0.44205154,65081.0,65080.0,0.000924]
[1721214555453,0.44505154,65081.0,65080.0,0.000924]
[1721214557631,0.25783808,65081.0,65080.0,0.000924]
[1721214557831,0.01333808,65081.0,65080.0,0.000924]
[1721214558002,0.006,65081.0,65080.0,0.000924]
[1721214558178,0.006,65081.0,65080.0,0.063924]
[1721214558357,0.006,65081.0,65080.0,0.165924]
[1721214558586,0.006,65081.0,65080.0,0.1825164]
[1721214559064,0.00580418,65081.0,65080.0,0.33689814]
[1721214559260,0.00280418,65081.0,65080.0,0.33689814]
[1721214559542,0.003634,65100.0,65080.0,0.33689814]
[1721214559672,0.002,65081.0,65080.0,0.1825164]
[1721214559870,0.002,65081.0,65080.0,0.33689814]
[1721214560369,0.003,65081.0,65080.0,0.33689814]
[1721214560564,0.002,65081.0,65080.0,0.33689814]
[1721214560976,0.002794,65099.0,65080.0,0.33689814]
[1721214561188,0.46304871,65097.0,65081.0,0.21107155]
[1721214561393,0.102794,65096.0,65081.0,0.21107155]
[1721214561590,0.002794,65096.0,65082.0,0.00154988]
[1721214561798,0.00084,65100.0,65084.0,0.0644]
[1721214561999,0.014,65099.0,65086.0,0.0819]
[1721214562241,0.014,65099.0,65087.0,0.21645386]
[1721214562451,0.014,65099.0,65087.0,0.21490481]
[1721214562623,0.00084,65100.0,65087.0,0.21490481]
[1721214562624,0.014,65097.0,65087.0,0.21490481]
[1721214563044,0.028,65097.0,65087.0,0.21490481]
[1721214563287,0.028,65097.0,65088.0,0.03612048]
[1721214563493,0.014,65097.0,65089.0,0.17738174]
[1721214563822,0.023,65097.0,65089.0,0.17738174]
[1721214564225,0.009,65097.0,65089.0,0.17738174]
[1721214564461,0.009,65097.0,65090.0,0.02954022]
[1721214564652,0.018,65097.0,65091.0,0.023]
[1721214565072,0.009,65097.0,65091.0,0.023]
[1721214565474,0.017,65097.0,65091.0,0.023]
[1721214565833,0.008,65097.0,65091.0,0.023]
[1721214566034,0.00084,65100.0,65092.0,0.0206922]
[1721214566207,0.008,65097.0,65093.0,0.023]
[1721214566747,0.015,65097.0,65093.0,0.023]
[1721214566950,0.008,65097.0,65093.0,0.023]
[1721214567579,0.007,65097.0,65093.0,0.023]
[1721214567781,0.007,65097.0,65094.0,0.01980739]
[1721214568191,0.00695948,65097.0,65094.0,0.01980739]
[1721214568389,0.00695948,65097.0,65095.0,0.15438174]
[1721214568664,0.00695948,65097.0,65096.0,0.08814838]
[1721214568788,0.01495948,65097.0,65096.0,0.24098174]
[1721214568993,0.01495948,65097.0,65096.0,0.26706065]
[1721214569259,0.008,65097.0,65096.0,0.11267891]
[1721214569436,0.00084,65100.0,65096.0,0.023]
[1721214569638,0.015,65097.0,65092.0,0.023]
[1721214569843,0.008,65097.0,65093.0,0.15438174]
[1721214570085,0.008,65097.0,65094.0,0.023]
[1721214570225,0.015,65097.0,65095.0,0.15438174]
[1721214570428,0.015,65097.0,65096.0,0.04678817]
[1721214571051,0.00084,65100.0,65096.0,0.04678817]
[1721214571440,0.008,65097.0,65096.0,0.04678817]
[1721214572057,0.00084,65100.0,65096.0,0.04678817]
[1721214572282,0.01184,65100.0,65096.0,0.04678817]
[1721214572481,0.01184,65100.0,65097.0,0.02011699]
[1721214572714,0.1432,65099.0,65087.0,0.0605]
[1721214572919,0.18380924,65098.0,65080.0,0.079224]
[1721214573158,0.18380924,65098.0,65080.0,0.15530574]
[1721214573328,0.18380924,65098.0,65080.0,0.000924]
[1721214573329,0.1432,65090.0,65080.0,0.000924]
[1721214573472,0.002794,65089.0,65080.0,0.000924]
[1721214575105,0.002794,65089.0,65080.0,0.001924]
[1721214575993,0.002794,65089.0,65080.0,0.000924]
[1721214577103,0.009794,65089.0,65080.0,0.000924]
[1721214577446,0.017794,65089.0,65080.0,0.0093664]
[1721214577658,0.017794,65089.0,65081.0,0.023]
[1721214578055,0.009794,65089.0,65081.0,0.023]
[1721214578456,0.017794,65089.0,65081.0,0.023]
[1721214578799,0.009794,65089.0,65081.0,0.023]
[1721214579136,0.017794,65089.0,65081.0,0.023]
[1721214580874,0.010794,65089.0,65081.0,0.023]
[1721214581072,0.017794,65089.0,65081.0,0.023]
[1721214581468,0.015,65089.0,65081.0,0.023]
[1721214581889,0.002794,65088.0,65081.0,0.023]
[1721214582114,0.015,65089.0,65082.0,0.1559325]
[1721214582313,0.015,65089.0,65083.0,0.04182989]
[1721214582489,0.015,65089.0,65084.0,0.15438174]
[1721214582737,0.015,65089.0,65085.0,0.023]
[1721214582942,0.015,65089.0,65085.0,0.17738174]
[1721214583884,0.002794,65095.0,65085.0,0.17738174]
[1721214584085,0.002794,65095.0,65086.0,0.01962116]
[1721214584265,0.015,65089.0,65087.0,0.023]
[1721214584464,0.008,65089.0,65087.0,0.023]
[1721214584870,0.015,65089.0,65087.0,0.023]
[1721214585113,0.008,65089.0,65087.0,0.023]
[1721214585273,0.002794,65095.0,65088.0,0.01970029]
[1721214585475,0.007,65089.0,65088.0,0.01970029]
[1721214585661,0.007,65089.0,65088.0,0.04270029]
[1721214586105,0.007,65089.0,65088.0,0.01970029]
[1721214586277,0.007,65089.0,65085.0,0.000924]
[1721214587019,0.002794,65094.0,65085.0,0.000924]
[1721214587377,0.007,65089.0,65085.0,0.000924]
[1721214587582,0.002794,65088.0,65085.0,0.000924]
[1721214587806,0.002794,65094.0,65085.0,0.000924]
[1721214588007,0.07995724,65093.0,65085.0,0.000924]
[1721214588206,0.002794,65092.0,65085.0,0.000924]
[1721214588410,0.002794,65092.0,65085.0,0.15530574]
[1721214588622,0.007,65089.0,65086.0,0.01783057]
[1721214588883,0.002794,65093.0,65085.0,0.000924]
[1721214588884,0.002794,65093.0,65085.0,0.0032419]
[1721214589227,0.002794,65094.0,65085.0,0.0032419]
[1721214589427,0.08007018,65093.0,65085.0,0.0032419]
[1721214589631,0.002794,65095.0,65085.0,0.0032419]
[1721214589632,0.002794,65092.0,65085.0,0.0032419]
[1721214589834,0.002794,65094.0,65085.0,0.0032419]
[1721214590030,0.0819,65096.0,65085.0,0.0032419]
[1721214590031,0.08007271,65093.0,65085.0,0.0032419]
[1721214590242,0.006,65088.0,65085.0,0.0032419]
[1721214590409,0.002794,65094.0,65085.0,0.0032419]
[1721214590621,0.011,65092.0,65085.0,0.0032419]
[1721214590813,0.002794,65091.0,65085.0,0.0032419]
[1721214591399,0.002794,65094.0,65085.0,0.0032419]
[1721214591577,0.013,65088.0,65087.0,0.0639]
[1721214591727,0.013,65088.0,65087.0,0.22059964]
[1721214591927,0.006,65088.0,65087.0,0.24359964]
[1721214592154,0.006,65088.0,65087.0,0.24514823]
[1721214593322,0.006,65088.0,65087.0,0.24359964]
[1721214593541,0.006,65088.0,65087.0,0.280982]
[1721214593943,0.001,65088.0,65087.0,0.282982]
[1721214594537,0.014,65094.0,65087.0,0.280982]
[1721214594669,0.00084,65100.0,65088.0,0.17738174]
[1721214595922,0.00084,65100.0,65088.0,0.17969964]
[1721214596122,0.00084,65100.0,65089.0,0.0361206]
[1721214596469,0.00084,65100.0,65090.0,0.17738174]
[1721214597223,0.00684,65100.0,65090.0,0.17738174]
[1721214597601,0.00084,65100.0,65090.0,0.17738174]
[1721214597753,0.00884,65100.0,65090.0,0.17738174]
[1721214597960,0.01684,65100.0,65091.0,0.03590202]
[1721214598158,0.01684,65100.0,65092.0,0.023]
[1721214598832,0.00884,65100.0,65092.0,0.023]
[1721214599295,0.00084,65100.0,65092.0,0.023]
[1721214600349,4.79090794,65080.0,65070.0,0.59301497]
[1721214600480,4.79090794,65080.0,65079.0,0.46608084]
[1721214601638,4.79090794,65080.0,65079.0,0.46609969]
[1721214601874,4.79090794,65080.0,65067.0,0.025]
[1721214602129,4.79090794,65080.0,65068.0,0.15438174]
[1721214602130,0.0614,65079.0,65068.0,0.15438174]
[1721214602861,4.79290794,65080.0,65068.0,0.15438174]
[1721214603125,4.79290794,65080.0,65069.0,0.00155193]
[1721214603246,4.79290794,65080.0,65071.0,0.1442]
[1721214603445,4.79290794,65080.0,65072.0,0.15438174]
[1721214603761,4.79190794,65080.0,65072.0,0.15438174]
[1721214603997,4.79090794,65080.0,65072.0,0.15438174]
[1721214604503,4.79090794,65080.0,65073.0,0.023]
[1721214604707,4.79190794,65080.0,65074.0,0.1905044]
[1721214605006,0.0616,65079.0,65063.0,0.0638]
[1721214605233,0.0616,65079.0,65064.0,0.26586511]
[1721214605441,0.0616,65079.0,65065.0,0.04070651]
[1721214605589,0.0616,65079.0,65065.0,0.19508825]
[1721214605792,0.0616,65079.0,65066.0,0.15438174]
[1721214606194,4.79290794,65080.0,65067.0,0.00155168]
[1721214606404,4.79290794,65080.0,65068.0,0.15438174]
[1721214606717,4.79290794,65080.0,65069.0,0.02121565]
[1721214606981,5.79390794,65080.0,65070.0,0.15438174]
[1721214607147,5.79190794,65080.0,65071.0,0.023]
[1721214607376,5.79090794,65080.0,65072.0,0.15438174]
[1721214607679,0.001,65079.0,65073.0,0.04270457]
[1721214607826,0.001,65079.0,65073.0,0.19708631]
[1721214608024,5.79190794,65080.0,65073.0,0.01970457]
[1721214608232,5.79190794,65080.0,65065.0,0.04070651]
[1721214608433,5.79290794,65080.0,65066.0,0.17738174]
[1721214608812,5.79190794,65080.0,65066.0,0.17738174]
[1721214609705,5.79190794,65080.0,65067.0,0.00155171]
[1721214609906,5.79190794,65080.0,65068.0,0.15438174]
[1721214610134,5.79190794,65080.0,65069.0,0.04651567]
[1721214610135,0.001,65079.0,65069.0,0.04651567]
[1721214610343,0.001,65079.0,65070.0,0.15438174]
[1721214610540,0.001,65079.0,65071.0,0.02455167]
[1721214610719,0.001,65079.0,65073.0,0.1361]
[1721214610918,0.001,65079.0,65074.0,0.17738174]
[1721214611116,0.001,65079.0,65075.0,0.05880332]
[1721214611343,0.001,65079.0,65076.0,0.17738174]
[1721214611512,5.79090794,65080.0,65076.0,0.17738174]
[1721214611723,5.79290794,65080.0,65076.0,0.17738174]
[1721214612328,5.79290794,65080.0,65079.0,0.3964]
[1721214612329,5.79090794,65080.0,65079.0,0.3964]
[1721214612550,5.79090794,65080.0,65079.0,0.64491283]
[1721214612707,5.79090794,65080.0,65079.0,0.75633576]
[1721214613124,5.79090794,65080.0,65079.0,0.70633576]
[1721214614083,5.79190794,65080.0,65079.0,0.64491283]
[1721214614258,5.79190794,65080.0,65079.0,0.75618887]
[1721214615009,5.79290794,65080.0,65079.0,0.75618887]
[1721214617353,5.79290794,65080.0,65079.0,0.75586612]
[1721214618649,5.79290794,65080.0,65079.0,0.70586612]
[1721214618854,5.79290794,65080.0,65079.0,0.15438174]
[1721214619053,5.79290794,65080.0,65070.0,0.2275]
[1721214619268,0.148,65079.0,65071.0,0.26541382]
[1721214619478,0.15472878,65079.0,65071.0,0.15438174]
[1721214619674,0.15472878,65079.0,65071.0,0.19201631]
[1721214619881,0.148,65079.0,65071.0,0.19201631]
[1721214620088,0.00672145,65078.0,65071.0,0.19201631]
[1721214620449,0.148,65079.0,65060.0,0.5505]
[1721214620578,0.0656,65076.0,65061.0,0.26560468]
[1721214620782,0.002794,65075.0,65061.0,0.26560468]
[1721214620989,0.002794,65072.0,65061.0,0.11122294]
[1721214621190,0.002794,65072.0,65062.0,0.02197202]
[1721214621443,0.002794,65072.0,65063.0,0.15438174]
[1721214622456,0.002794,65072.0,65064.0,0.00155218]
[1721214622658,0.003794,65072.0,65065.0,0.15438174]
[1721214622805,0.003794,65072.0,65066.0,0.02572538]
[1721214623006,0.003794,65072.0,65067.0,0.023]
[1721214623206,0.003794,65072.0,65068.0,0.15438174]